[Event "*** Titled Tuesday Blitz"]
[Site "Chess.com"]
[Date "2020.05.19"]
[Round "3"]
[White "2L8IWUN"]
[Black "VALPARAISO37"]
[Result "1-0"]
[WhiteElo "2536"]
[BlackElo "2312"]
[TimeControl "180+1"]
[EndTime "12:28:22 PDT"]
[Termination "2L8IWUN won by checkmate"]

1. Nf3 {[%clk 0:03:00.9]} 1... d5 {[%clk 0:02:59.4]} 2. d4 {[%clk 0:03:00.2]}
2... Nf6 {[%clk 0:02:58.9]} 3. c4 {[%clk 0:03:00.8]} 3... e6 {[%clk 0:02:58.8]}
4. Nc3 {[%clk 0:03:00.9]} 4... a6 {[%clk 0:02:59.4]} 5. cxd5 {[%clk 0:02:58.7]}
5... exd5 {[%clk 0:02:59.6]} 6. Bf4 {[%clk 0:02:58.7]} 6... Be6 {[%clk
0:03:00.3]} 7. e3 {[%clk 0:02:55.9]} 7... Bd6 {[%clk 0:03:00.5]} 8. Bxd6 {[%clk
0:02:55.4]} 8... Qxd6 {[%clk 0:03:00.3]} 9. Bd3 {[%clk 0:02:56.3]} 9... c5
{[%clk 0:02:59.4]} 10. dxc5 {[%clk 0:02:55.2]} 10... Qxc5 {[%clk 0:02:59.7]} 11.
Rc1 {[%clk 0:02:53.2]} 11... Qb4 {[%clk 0:02:58.8]} 12. O-O {[%clk 0:02:52.1]}
12... Nbd7 {[%clk 0:02:58.9]} 13. Nd4 {[%clk 0:02:43.8]} 13... O-O {[%clk
0:02:57.2]} 14. Qe2 {[%clk 0:02:40.4]} 14... Rac8 {[%clk 0:02:54.5]} 15. a3
{[%clk 0:02:39.1]} 15... Qa5 {[%clk 0:02:53.3]} 16. h3 {[%clk 0:02:35.5]} 16...
h6 {[%clk 0:02:52]} 17. Rfd1 {[%clk 0:02:29.1]} 17... Rfe8 {[%clk 0:02:51.7]}
18. Bf5 {[%clk 0:02:21.4]} 18... Ne5 {[%clk 0:02:49.5]} 19. Bxe6 {[%clk
0:02:15.6]} 19... fxe6 {[%clk 0:02:49]} 20. e4 {[%clk 0:02:09.1]} 20... Nc4
{[%clk 0:02:48.4]} 21. exd5 {[%clk 0:01:29.6]} 21... exd5 {[%clk 0:02:47.1]} 22.
Qc2 {[%clk 0:01:27.4]} 22... Nd6 {[%clk 0:02:38.7]} 23. Re1 {[%clk 0:01:25.3]}
23... Nde4 {[%clk 0:02:38.1]} 24. Qb3 {[%clk 0:01:21.5]} 24... Nxc3 {[%clk
0:02:36.2]} 25. Rxe8+ {[%clk 0:01:19.5]} 25... Rxe8 {[%clk 0:02:35.9]} 26. Qxc3
{[%clk 0:01:13.4]} 26... Qb6 {[%clk 0:02:33]} 27. Nf3 {[%clk 0:01:08.1]} 27...
Re2 {[%clk 0:02:30.2]} 28. Nd4 {[%clk 0:01:00.8]} 28... Rxb2 {[%clk 0:02:26.4]}
29. Qc8+ {[%clk 0:00:59.6]} 29... Kh7 {[%clk 0:02:22]} 30. Qf5+ {[%clk
0:00:59.1]} 30... g6 {[%clk 0:02:20.8]} 31. Qe5 {[%clk 0:00:49.6]} 31... Rb1
{[%clk 0:02:08.1]} 32. Rxb1 {[%clk 0:00:42.5]} 32... Qxb1+ {[%clk 0:02:07.4]}
33. Kh2 {[%clk 0:00:43]} 33... Nh5 {[%clk 0:01:16.6]} 34. Ne6 {[%clk 0:00:10.2]}
34... Qf5 {[%clk 0:00:57.4]} 35. Qc7+ {[%clk 0:00:08.7]} 35... Kg8 {[%clk
0:00:57.2]} 36. Qd8+ {[%clk 0:00:08.8]} 36... Kf7 {[%clk 0:00:54.5]} 37. Qd7+
{[%clk 0:00:08.3]} 37... Kf6 {[%clk 0:00:54.3]} 38. Nf8 {[%clk 0:00:06.2]} 38...
Qe5+ {[%clk 0:00:53.3]} 39. g3 {[%clk 0:00:05.7]} 39... Nxg3 {[%clk 0:00:42.9]}
40. Nh7# {[%clk 0:00:04.2]} 1-0

[Event "*** Titled Tuesday Blitz"]
[Site "Chess.com"]
[Date "2020.05.19"]
[Round "3"]
[White "K_A_S_T_O_R"]
[Black "Nathan_Filgueiras"]
[Result "1-0"]
[WhiteElo "2722"]
[BlackElo "2325"]
[TimeControl "180+1"]
[EndTime "12:28:22 PDT"]
[Termination "K_A_S_T_O_R won by resignation"]

1. e4 {[%clk 0:03:00.9]} 1... c5 {[%clk 0:02:59.8]} 2. Nf3 {[%clk 0:03:00.9]}
2... Nc6 {[%clk 0:03:00.4]} 3. d4 {[%clk 0:03:01.1]} 3... cxd4 {[%clk
0:03:01.3]} 4. Nxd4 {[%clk 0:03:01.7]} 4... d5 {[%clk 0:02:59.1]} 5. exd5 {[%clk
0:02:44]} 5... Qxd5 {[%clk 0:02:57.8]} 6. Be3 {[%clk 0:02:43.9]} 6... e6 {[%clk
0:02:50.8]} 7. Nc3 {[%clk 0:02:42.4]} 7... Bb4 {[%clk 0:02:47.9]} 8. Nb5 {[%clk
0:02:42.2]} 8... Qe5 {[%clk 0:02:41.9]} 9. a3 {[%clk 0:02:33]} 9... Be7 {[%clk
0:02:36.5]} 10. Qd2 {[%clk 0:02:25.2]} 10... a6 {[%clk 0:02:13.8]} 11. f4 {[%clk
0:02:21.5]} 11... Qb8 {[%clk 0:02:09.1]} 12. Nd4 {[%clk 0:02:21.9]} 12... Nf6
{[%clk 0:02:03.4]} 13. Be2 {[%clk 0:02:21.5]} 13... O-O {[%clk 0:02:02.7]} 14.
O-O-O {[%clk 0:02:20.9]} 14... Bd7 {[%clk 0:01:58.4]} 15. Bf3 {[%clk 0:02:19.9]}
15... Qc7 {[%clk 0:01:45]} 16. g4 {[%clk 0:02:17.1]} 16... Nxd4 {[%clk
0:01:26.4]} 17. Bxd4 {[%clk 0:02:16.2]} 17... Bc6 {[%clk 0:01:26.4]} 18. Qe3
{[%clk 0:02:07.1]} 18... Bxf3 {[%clk 0:01:03.4]} 19. Qxf3 {[%clk 0:02:06.5]}
19... Rac8 {[%clk 0:01:03.9]} 20. Rd2 {[%clk 0:02:01.4]} 20... Rfd8 {[%clk
0:00:53.7]} 21. Rhd1 {[%clk 0:01:59.5]} 21... Nd5 {[%clk 0:00:51.3]} 22. Be5
{[%clk 0:01:55.6]} 22... Qc6 {[%clk 0:00:44.5]} 23. Nxd5 {[%clk 0:01:48.3]}
23... Rxd5 {[%clk 0:00:41.7]} 24. Qe2 {[%clk 0:01:45.5]} 24... Rxd2 {[%clk
0:00:27.9]} 25. Rxd2 {[%clk 0:01:44.8]} 25... b5 {[%clk 0:00:18.6]} 26. Kb1
{[%clk 0:01:36.7]} 26... b4 {[%clk 0:00:17.5]} 27. axb4 {[%clk 0:01:35.9]} 27...
Bxb4 {[%clk 0:00:18.4]} 28. c3 {[%clk 0:01:36.1]} 28... Be7 {[%clk 0:00:17.1]}
29. g5 {[%clk 0:01:34.6]} 29... a5 {[%clk 0:00:13.5]} 30. Qg2 {[%clk 0:01:32.6]}
30... Qxg2 {[%clk 0:00:11.3]} 31. Rxg2 {[%clk 0:01:32.1]} 31... a4 {[%clk
0:00:10.5]} 32. Rd2 {[%clk 0:01:31.7]} 32... f6 {[%clk 0:00:10.9]} 33. gxf6
{[%clk 0:01:30.2]} 33... gxf6 {[%clk 0:00:11.8]} 34. Bd4 {[%clk 0:01:28.3]}
34... Kf7 {[%clk 0:00:12.2]} 35. Rd3 {[%clk 0:01:27.5]} 35... a3 {[%clk
0:00:12.2]} 36. b4 {[%clk 0:01:24.7]} 36... Bd6 {[%clk 0:00:12.1]} 37. Be3
{[%clk 0:01:22.2]} 37... Rd8 {[%clk 0:00:09.2]} 38. Ka2 {[%clk 0:01:18.8]} 38...
Rd7 {[%clk 0:00:07.4]} 39. Bc5 {[%clk 0:01:17.3]} 39... Ke7 {[%clk 0:00:04.6]}
40. Rxd6 {[%clk 0:01:17.2]} 40... Rxd6 {[%clk 0:00:05.5]} 41. Kxa3 {[%clk
0:01:17.6]} 41... Kd7 {[%clk 0:00:05.7]} 42. Bxd6 {[%clk 0:01:17.7]} 42... Kxd6
{[%clk 0:00:06.6]} 43. Kb3 {[%clk 0:01:18.2]} 43... Kd5 {[%clk 0:00:06.5]} 44.
c4+ {[%clk 0:01:16.6]} 44... Kd4 {[%clk 0:00:06.6]} 45. c5 {[%clk 0:01:17]}
45... Kd5 {[%clk 0:00:06.9]} 46. Kc3 {[%clk 0:01:16.6]} 46... e5 {[%clk
0:00:07.1]} 47. fxe5 {[%clk 0:01:15.9]} 47... fxe5 {[%clk 0:00:08]} 48. Kd3
{[%clk 0:01:16.3]} 1-0

[Event "*** Titled Tuesday Blitz"]
[Site "Chess.com"]
[Date "2020.05.19"]
[Round "3"]
[White "vpsetter"]
[Black "Firouzja2003"]
[Result "0-1"]
[WhiteElo "2666"]
[BlackElo "3172"]
[TimeControl "180+1"]
[EndTime "12:28:24 PDT"]
[Termination "Firouzja2003 won by resignation"]

1. e4 {[%clk 0:02:59.5]} 1... c5 {[%clk 0:02:58.3]} 2. Nf3 {[%clk 0:02:59.9]}
2... d6 {[%clk 0:02:55.4]} 3. d4 {[%clk 0:03:00]} 3... cxd4 {[%clk 0:02:56.3]}
4. Nxd4 {[%clk 0:03:00]} 4... Nf6 {[%clk 0:02:56.9]} 5. Nc3 {[%clk 0:03:00.5]}
5... a6 {[%clk 0:02:57.5]} 6. Be2 {[%clk 0:02:57]} 6... e5 {[%clk 0:02:57.4]} 7.
Nb3 {[%clk 0:02:49.9]} 7... Be7 {[%clk 0:02:58]} 8. Kf1 {[%clk 0:02:49.5]} 8...
O-O {[%clk 0:02:57.8]} 9. h4 {[%clk 0:02:46.1]} 9... b5 {[%clk 0:02:58.2]} 10.
Bf3 {[%clk 0:02:38.4]} 10... Bb7 {[%clk 0:02:58.5]} 11. g3 {[%clk 0:02:32.6]}
11... Nbd7 {[%clk 0:02:55.1]} 12. Bg5 {[%clk 0:02:31.7]} 12... b4 {[%clk
0:02:53.8]} 13. Bxf6 {[%clk 0:02:18.9]} 13... Nxf6 {[%clk 0:02:46.4]} 14. Nd5
{[%clk 0:02:18.8]} 14... Nxd5 {[%clk 0:02:46.5]} 15. exd5 {[%clk 0:02:18.8]}
15... f5 {[%clk 0:02:47.4]} 16. Qd2 {[%clk 0:01:57.4]} 16... a5 {[%clk
0:02:47.3]} 17. a4 {[%clk 0:01:54.2]} 17... Rc8 {[%clk 0:02:45.6]} 18. Kg2
{[%clk 0:01:49.8]} 18... Bf6 {[%clk 0:02:44.9]} 19. Be2 {[%clk 0:01:36.2]} 19...
e4 {[%clk 0:02:43.4]} 20. Nd4 {[%clk 0:00:52.9]} 20... Bxd4 {[%clk 0:02:39.8]}
21. Qxd4 {[%clk 0:00:53.8]} 21... Rxc2 {[%clk 0:02:40.7]} 22. Bc4 {[%clk
0:00:47.8]} 22... Qf6 {[%clk 0:02:40.1]} 23. Qxf6 {[%clk 0:00:44.7]} 23... Rxf6
{[%clk 0:02:41]} 24. b3 {[%clk 0:00:44.8]} 24... f4 {[%clk 0:02:41.5]} 25. Rhc1
{[%clk 0:00:41.6]} 25... Rd2 {[%clk 0:02:40.8]} 26. Rd1 {[%clk 0:00:41.1]} 26...
Rb2 {[%clk 0:02:35.8]} 27. Rab1 {[%clk 0:00:40.4]} 27... Rxb1 {[%clk 0:02:36.2]}
28. Rxb1 {[%clk 0:00:40.4]} 28... Rf5 {[%clk 0:02:24.2]} 29. Rd1 {[%clk
0:00:39.6]} 29... f3+ {[%clk 0:02:19.3]} 30. Kf1 {[%clk 0:00:38.6]} 30... Kf7
{[%clk 0:02:19.4]} 31. Ke1 {[%clk 0:00:37.8]} 31... Kf6 {[%clk 0:02:19.8]} 32.
Kd2 {[%clk 0:00:37.5]} 32... Bxd5 {[%clk 0:02:18.8]} 33. Ke3 {[%clk 0:00:37.6]}
33... Bxc4 {[%clk 0:02:19.2]} 34. bxc4 {[%clk 0:00:37.9]} 34... Ke6 {[%clk
0:02:13.5]} 35. Kxe4 {[%clk 0:00:38]} 35... Rc5 {[%clk 0:02:12.6]} 36. Kd4
{[%clk 0:00:31]} 36... h6 {[%clk 0:02:06.8]} 37. Rd3 {[%clk 0:00:29.4]} 37...
Rf5 {[%clk 0:02:06.5]} 38. Re3+ {[%clk 0:00:29.5]} 38... Kd7 {[%clk 0:02:06.6]}
39. Kd3 {[%clk 0:00:21.2]} 39... g5 {[%clk 0:02:04.6]} 40. hxg5 {[%clk
0:00:20.6]} 40... hxg5 {[%clk 0:02:05.5]} 41. Re4 {[%clk 0:00:20]} 41... Kc6
{[%clk 0:02:05.2]} 42. Re8 {[%clk 0:00:19.9]} 42... Re5 {[%clk 0:02:03.7]} 43.
Rc8+ {[%clk 0:00:19.8]} 43... Kb7 {[%clk 0:02:02.9]} 44. Rf8 {[%clk 0:00:20.1]}
44... g4 {[%clk 0:02:02.9]} 45. Rf4 {[%clk 0:00:20]} 45... Re2 {[%clk
0:02:02.2]} 46. Rxg4 {[%clk 0:00:20.4]} 46... Rxf2 {[%clk 0:02:02.9]} 47. Rg7+
{[%clk 0:00:17.5]} 47... Kc6 {[%clk 0:02:02.4]} 48. Rg5 {[%clk 0:00:15.1]} 48...
b3 {[%clk 0:01:31.1]} 49. Ke3 {[%clk 0:00:15.3]} 49... Ra2 {[%clk 0:01:24.8]}
50. Kxf3 {[%clk 0:00:15.3]} 50... Rxa4 {[%clk 0:01:25]} 0-1

[Event "*** Titled Tuesday Blitz"]
[Site "Chess.com"]
[Date "2020.05.19"]
[Round "3"]
[White "2nd_life"]
[Black "GoldenShare"]
[Result "1-0"]
[WhiteElo "2423"]
[BlackElo "2618"]
[TimeControl "180+1"]
[EndTime "12:28:25 PDT"]
[Termination "2nd_life won by resignation"]

1. e4 {[%clk 0:03:00.9]} 1... e6 {[%clk 0:02:59.9]} 2. d4 {[%clk 0:03:00.5]}
2... d5 {[%clk 0:03:00.5]} 3. Nc3 {[%clk 0:03:01.1]} 3... Nc6 {[%clk 0:03:00.6]}
4. e5 {[%clk 0:02:57.5]} 4... f6 {[%clk 0:03:00.2]} 5. f4 {[%clk 0:02:57.2]}
5... fxe5 {[%clk 0:03:00.3]} 6. dxe5 {[%clk 0:02:57.3]} 6... Bc5 {[%clk
0:03:00.3]} 7. Nf3 {[%clk 0:02:52.9]} 7... Nh6 {[%clk 0:03:00.8]} 8. Na4 {[%clk
0:02:33.2]} 8... Be7 {[%clk 0:02:53.1]} 9. Bd3 {[%clk 0:02:29.2]} 9... Nb4
{[%clk 0:02:48.3]} 10. Be2 {[%clk 0:02:14.3]} 10... c5 {[%clk 0:02:48]} 11. a3
{[%clk 0:01:57.2]} 11... Nc6 {[%clk 0:02:48]} 12. c4 {[%clk 0:01:55]} 12... d4
{[%clk 0:02:34.2]} 13. O-O {[%clk 0:01:52]} 13... O-O {[%clk 0:02:34.4]} 14. Bd3
{[%clk 0:01:29.9]} 14... Nf5 {[%clk 0:02:09.6]} 15. Qe2 {[%clk 0:01:20.6]} 15...
b6 {[%clk 0:02:02.7]} 16. g4 {[%clk 0:01:16.7]} 16... Nh4 {[%clk 0:01:28.7]} 17.
Nxh4 {[%clk 0:01:10.4]} 17... Bxh4 {[%clk 0:01:29.6]} 18. g5 {[%clk 0:00:52.1]}
18... h6 {[%clk 0:01:06.7]} 19. Qh5 {[%clk 0:00:41]} 19... Bxg5 {[%clk
0:00:44.8]} 20. fxg5 {[%clk 0:00:40.7]} 20... Nxe5 {[%clk 0:00:45.7]} 21. Rxf8+
{[%clk 0:00:30.8]} 21... Qxf8 {[%clk 0:00:46.6]} 22. Be4 {[%clk 0:00:31.1]}
22... Bd7 {[%clk 0:00:30.1]} 23. gxh6 {[%clk 0:00:28.7]} 23... Bxa4 {[%clk
0:00:27.2]} 24. Qxe5 {[%clk 0:00:23.4]} 24... Rd8 {[%clk 0:00:21.4]} 25. Qxe6+
{[%clk 0:00:20.6]} 25... Kh8 {[%clk 0:00:20.3]} 26. Qg6 {[%clk 0:00:19.7]} 26...
Kg8 {[%clk 0:00:16.2]} 27. Bg5 {[%clk 0:00:15.5]} 27... Rd6 {[%clk 0:00:08.4]}
28. Qh7+ {[%clk 0:00:14.3]} 28... Kf7 {[%clk 0:00:08.5]} 29. Rf1+ {[%clk
0:00:14.4]} 1-0

[Event "*** Titled Tuesday Blitz"]
[Site "Chess.com"]
[Date "2020.05.19"]
[Round "3"]
[White "MaxLeto"]
[Black "Artem_Sadovsky"]
[Result "1-0"]
[WhiteElo "2338"]
[BlackElo "2526"]
[TimeControl "180+1"]
[EndTime "12:28:26 PDT"]
[Termination "MaxLeto won by checkmate"]

1. g4 {[%clk 0:03:00.9]} 1... d5 {[%clk 0:02:51.8]} 2. Bg2 {[%clk 0:02:50.5]}
2... c6 {[%clk 0:02:50]} 3. g5 {[%clk 0:02:49.8]} 3... e5 {[%clk 0:02:49.7]} 4.
d4 {[%clk 0:02:49.7]} 4... e4 {[%clk 0:02:47.5]} 5. c4 {[%clk 0:02:48.1]} 5...
Be7 {[%clk 0:02:40.2]} 6. h4 {[%clk 0:02:48]} 6... h6 {[%clk 0:02:39.9]} 7. f4
{[%clk 0:02:32.3]} 7... exf3 {[%clk 0:01:49.9]} 8. Nxf3 {[%clk 0:02:31.7]} 8...
hxg5 {[%clk 0:01:48]} 9. hxg5 {[%clk 0:02:04.4]} 9... Rxh1+ {[%clk 0:01:48.9]}
10. Bxh1 {[%clk 0:02:04.2]} 10... dxc4 {[%clk 0:01:43.6]} 11. Bf4 {[%clk
0:01:47.5]} 11... Bd6 {[%clk 0:01:29]} 12. Qd2 {[%clk 0:01:45.3]} 12... Ne7
{[%clk 0:01:28.6]} 13. Nc3 {[%clk 0:01:42.3]} 13... Nd5 {[%clk 0:01:24.4]} 14.
Be5 {[%clk 0:01:33.8]} 14... Bf5 {[%clk 0:01:11.7]} 15. O-O-O {[%clk 0:00:50.9]}
15... Bb4 {[%clk 0:01:00.5]} 16. e4 {[%clk 0:00:15.3]} 16... Bxe4 {[%clk
0:00:51.9]} 17. Re1 {[%clk 0:00:12.7]} 17... Nxc3 {[%clk 0:00:36.7]} 18. bxc3
{[%clk 0:00:08.7]} 18... Ba3+ {[%clk 0:00:37.6]} 19. Kd1 {[%clk 0:00:09.3]}
19... Qd5 {[%clk 0:00:34.8]} 20. Bxg7 {[%clk 0:00:03.9]} 20... Kd8 {[%clk
0:00:26]} 21. Bf6+ {[%clk 0:00:03.4]} 21... Kc8 {[%clk 0:00:25.7]} 22. Qe3
{[%clk 0:00:03.9]} 22... Bf5 {[%clk 0:00:05.1]} 23. Qe8+ {[%clk 0:00:03.7]}
23... Kc7 {[%clk 0:00:06]} 24. Ne5 {[%clk 0:00:03.8]} 24... Qb5 {[%clk
0:00:04.8]} 25. Qd8# {[%clk 0:00:04.1]} 1-0

[Event "*** Titled Tuesday Blitz"]
[Site "Chess.com"]
[Date "2020.05.19"]
[Round "3"]
[White "Aygehovit1992"]
[Black "Anna_ChessMate"]
[Result "0-1"]
[WhiteElo "2694"]
[BlackElo "2520"]
[TimeControl "180+1"]
[EndTime "12:28:28 PDT"]
[Termination "Anna_ChessMate won by checkmate"]

1. e4 {[%clk 0:03:00.9]} 1... e5 {[%clk 0:02:59]} 2. Bc4 {[%clk 0:03:00.2]} 2...
c6 {[%clk 0:02:57.8]} 3. Nf3 {[%clk 0:02:58.3]} 3... d5 {[%clk 0:02:49.6]} 4.
exd5 {[%clk 0:02:58.2]} 4... cxd5 {[%clk 0:02:50.5]} 5. Bb5+ {[%clk 0:02:58.2]}
5... Bd7 {[%clk 0:02:50.9]} 6. Bxd7+ {[%clk 0:02:55]} 6... Nxd7 {[%clk
0:02:51.8]} 7. O-O {[%clk 0:02:54.7]} 7... Bd6 {[%clk 0:02:52.1]} 8. Re1 {[%clk
0:02:53.8]} 8... Ne7 {[%clk 0:02:51.9]} 9. c4 {[%clk 0:02:29.6]} 9... O-O {[%clk
0:02:49.5]} 10. cxd5 {[%clk 0:02:27.2]} 10... Nxd5 {[%clk 0:02:50.4]} 11. Nc3
{[%clk 0:02:27.7]} 11... Nf4 {[%clk 0:02:50.1]} 12. d4 {[%clk 0:02:25.9]} 12...
Ng6 {[%clk 0:02:40.7]} 13. Bg5 {[%clk 0:02:00.4]} 13... Qb6 {[%clk 0:02:28.2]}
14. Nd5 {[%clk 0:01:06.8]} 14... Qa6 {[%clk 0:02:16.3]} 15. dxe5 {[%clk
0:00:50.7]} 15... Ndxe5 {[%clk 0:02:16]} 16. Nd4 {[%clk 0:00:49.7]} 16... Rfe8
{[%clk 0:02:02.7]} 17. Nf5 {[%clk 0:00:48.7]} 17... Bc5 {[%clk 0:01:18.1]} 18.
Be3 {[%clk 0:00:35.4]} 18... Bxe3 {[%clk 0:01:16.1]} 19. Rxe3 {[%clk 0:00:36.3]}
19... Rad8 {[%clk 0:01:06.3]} 20. Qb3 {[%clk 0:00:35.8]} 20... Qc4 {[%clk
0:00:50.3]} 21. Nde7+ {[%clk 0:00:30.9]} 21... Nxe7 {[%clk 0:00:47.4]} 22. Nxe7+
{[%clk 0:00:30.8]} 22... Kf8 {[%clk 0:00:35.5]} 23. Rxe5 {[%clk 0:00:12.5]}
23... Qxb3 {[%clk 0:00:32.6]} 24. axb3 {[%clk 0:00:11.7]} 24... Rxe7 {[%clk
0:00:32.4]} 25. Rb5 {[%clk 0:00:11.4]} 25... a6 {[%clk 0:00:32.1]} 26. h3 {[%clk
0:00:11.5]} 26... axb5 {[%clk 0:00:31.8]} 27. Ra5 {[%clk 0:00:11.6]} 27... Re5
{[%clk 0:00:28.8]} 28. Ra7 {[%clk 0:00:11.5]} 28... Rd7 {[%clk 0:00:29.3]} 29.
f4 {[%clk 0:00:12.1]} 29... Re2 {[%clk 0:00:29.1]} 30. Ra8+ {[%clk 0:00:11.3]}
30... Ke7 {[%clk 0:00:29]} 31. Rc8 {[%clk 0:00:12.2]} 31... Rxb2 {[%clk
0:00:27.6]} 32. Rc5 {[%clk 0:00:13.1]} 32... Rdd2 {[%clk 0:00:27.1]} 33. Rg5
{[%clk 0:00:14]} 33... g6 {[%clk 0:00:26.5]} 34. Rxb5 {[%clk 0:00:14]} 34...
Rxg2+ {[%clk 0:00:26.2]} 35. Kh1 {[%clk 0:00:14.9]} 35... Rgc2 {[%clk
0:00:26.6]} 36. Rxb7+ {[%clk 0:00:15.6]} 36... Kf6 {[%clk 0:00:26.6]} 37. Rb6+
{[%clk 0:00:16.5]} 37... Kg7 {[%clk 0:00:27]} 38. Rb5 {[%clk 0:00:17.4]} 38...
Rc1# {[%clk 0:00:26.9]} 0-1

[Event "*** Titled Tuesday Blitz"]
[Site "Chess.com"]
[Date "2020.05.19"]
[Round "3"]
[White "stoleriu"]
[Black "Djager97"]
[Result "1-0"]
[WhiteElo "2556"]
[BlackElo "2357"]
[TimeControl "180+1"]
[EndTime "12:28:28 PDT"]
[Termination "stoleriu won by checkmate"]

1. e4 {[%clk 0:03:00.9]} 1... e5 {[%clk 0:02:59.1]} 2. Nf3 {[%clk 0:02:59.6]}
2... Nc6 {[%clk 0:02:59]} 3. Bb5 {[%clk 0:02:59.3]} 3... a6 {[%clk 0:02:59.2]}
4. Ba4 {[%clk 0:02:56]} 4... Nf6 {[%clk 0:02:58.9]} 5. d3 {[%clk 0:02:54.8]}
5... b5 {[%clk 0:02:50]} 6. Bb3 {[%clk 0:02:54.7]} 6... Be7 {[%clk 0:02:48.9]}
7. O-O {[%clk 0:02:53.1]} 7... d6 {[%clk 0:02:46.3]} 8. c3 {[%clk 0:02:53]} 8...
O-O {[%clk 0:02:36.8]} 9. Re1 {[%clk 0:02:52.7]} 9... Na5 {[%clk 0:02:36.2]} 10.
Bc2 {[%clk 0:02:52.8]} 10... c5 {[%clk 0:02:36.8]} 11. Nbd2 {[%clk 0:02:53.2]}
11... Nc6 {[%clk 0:02:36]} 12. Nf1 {[%clk 0:02:53.1]} 12... Re8 {[%clk
0:02:27.4]} 13. h3 {[%clk 0:02:51.7]} 13... h6 {[%clk 0:02:18.4]} 14. Ng3 {[%clk
0:02:51.9]} 14... Be6 {[%clk 0:02:14.5]} 15. Nh2 {[%clk 0:02:51.3]} 15... d5
{[%clk 0:02:09.2]} 16. Qf3 {[%clk 0:02:51.9]} 16... d4 {[%clk 0:02:07.2]} 17.
Nf5 {[%clk 0:02:35.6]} 17... Bf8 {[%clk 0:02:06.1]} 18. Ng4 {[%clk 0:02:26.4]}
18... Nxg4 {[%clk 0:01:50.6]} 19. hxg4 {[%clk 0:02:24.7]} 19... dxc3 {[%clk
0:01:38.6]} 20. bxc3 {[%clk 0:02:21.5]} 20... b4 {[%clk 0:01:39.2]} 21. Ba4
{[%clk 0:02:17.8]} 21... Rc8 {[%clk 0:01:38.4]} 22. cxb4 {[%clk 0:02:14.2]}
22... cxb4 {[%clk 0:01:35.1]} 23. Bb2 {[%clk 0:02:14]} 23... Bxf5 {[%clk
0:01:21.2]} 24. exf5 {[%clk 0:02:11]} 24... e4 {[%clk 0:00:51.5]} 25. dxe4
{[%clk 0:02:03.8]} 25... Qa5 {[%clk 0:00:22.4]} 26. Bb3 {[%clk 0:01:43.9]} 26...
Ne5 {[%clk 0:00:22.3]} 27. Qe2 {[%clk 0:01:43.1]} 27... Bc5 {[%clk 0:00:17.4]}
28. Rad1 {[%clk 0:01:40.3]} 28... Kf8 {[%clk 0:00:14.8]} 29. Rd5 {[%clk
0:01:27.8]} 29... f6 {[%clk 0:00:14.9]} 30. Rc1 {[%clk 0:01:21.4]} 30... Qb6
{[%clk 0:00:14.7]} 31. Rcd1 {[%clk 0:00:47.1]} 31... Rcd8 {[%clk 0:00:11.1]} 32.
Rxd8 {[%clk 0:00:32.2]} 32... Rxd8 {[%clk 0:00:11.3]} 33. Rxd8+ {[%clk
0:00:33.1]} 33... Qxd8 {[%clk 0:00:11.8]} 34. Bxe5 {[%clk 0:00:34]} 34... fxe5
{[%clk 0:00:12.7]} 35. Qc4 {[%clk 0:00:34.7]} 35... Qb6 {[%clk 0:00:04.7]} 36.
Qf7# {[%clk 0:00:34.2]} 1-0

[Event "*** Titled Tuesday Blitz"]
[Site "Chess.com"]
[Date "2020.05.19"]
[Round "3"]
[White "dragos420"]
[Black "SameerMujumdar"]
[Result "1-0"]
[WhiteElo "2506"]
[BlackElo "2251"]
[TimeControl "180+1"]
[EndTime "12:28:30 PDT"]
[Termination "dragos420 won by checkmate"]

1. e4 {[%clk 0:03:00.9]} 1... c5 {[%clk 0:02:58.6]} 2. Nf3 {[%clk 0:03:01]} 2...
e6 {[%clk 0:02:58.9]} 3. d4 {[%clk 0:03:01]} 3... cxd4 {[%clk 0:02:59.8]} 4.
Nxd4 {[%clk 0:03:01.9]} 4... a6 {[%clk 0:03:00.6]} 5. c4 {[%clk 0:03:02.3]} 5...
Qc7 {[%clk 0:02:58.7]} 6. Nc3 {[%clk 0:03:02.4]} 6... g6 {[%clk 0:02:58.3]} 7.
Be3 {[%clk 0:02:56.4]} 7... Bg7 {[%clk 0:02:58.5]} 8. Be2 {[%clk 0:02:57]} 8...
d6 {[%clk 0:02:58.6]} 9. O-O {[%clk 0:02:57.4]} 9... Nf6 {[%clk 0:02:57.9]} 10.
f3 {[%clk 0:02:54.9]} 10... Nbd7 {[%clk 0:02:54.4]} 11. Rc1 {[%clk 0:02:55.1]}
11... O-O {[%clk 0:02:53.5]} 12. b4 {[%clk 0:02:44.6]} 12... b6 {[%clk
0:02:50.7]} 13. Qb3 {[%clk 0:02:41.7]} 13... Bb7 {[%clk 0:02:48.8]} 14. Kh1
{[%clk 0:02:34.7]} 14... Rac8 {[%clk 0:02:45.7]} 15. Rfd1 {[%clk 0:02:32.4]}
15... Ne5 {[%clk 0:02:44.5]} 16. Na4 {[%clk 0:02:28.1]} 16... Nfd7 {[%clk
0:02:44.4]} 17. Nb2 {[%clk 0:02:15.9]} 17... Qb8 {[%clk 0:02:33.1]} 18. a4
{[%clk 0:02:04]} 18... Rc7 {[%clk 0:02:29]} 19. Qa3 {[%clk 0:01:18.3]} 19...
Rfc8 {[%clk 0:02:23.7]} 20. a5 {[%clk 0:01:18.5]} 20... bxa5 {[%clk 0:01:54.7]}
21. Qxa5 {[%clk 0:01:16.1]} 21... Nc6 {[%clk 0:01:33.6]} 22. Nxc6 {[%clk
0:01:03.4]} 22... Bxc6 {[%clk 0:01:33.1]} 23. Nd3 {[%clk 0:00:59.9]} 23... Bb7
{[%clk 0:01:28.4]} 24. c5 {[%clk 0:00:58.6]} 24... dxc5 {[%clk 0:01:25.1]} 25.
Nxc5 {[%clk 0:00:58.3]} 25... Nxc5 {[%clk 0:01:23.8]} 26. Rxc5 {[%clk
0:00:59.2]} 26... Rxc5 {[%clk 0:01:22.4]} 27. Bxc5 {[%clk 0:00:56.7]} 27... Be5
{[%clk 0:01:22.8]} 28. Bxa6 {[%clk 0:00:48.8]} 28... Bxa6 {[%clk 0:01:18.3]} 29.
Qxa6 {[%clk 0:00:49.7]} 29... Bxh2 {[%clk 0:01:17.7]} 30. Ba7 {[%clk 0:00:37.3]}
30... Qc7 {[%clk 0:01:03.2]} 31. b5 {[%clk 0:00:24.2]} 31... Qc2 {[%clk
0:00:38.8]} 32. Kxh2 {[%clk 0:00:20.5]} 32... Kg7 {[%clk 0:00:33.3]} 33. Qa1+
{[%clk 0:00:17.2]} 33... Kg8 {[%clk 0:00:29.4]} 34. b6 {[%clk 0:00:17.6]} 34...
Rc5 {[%clk 0:00:26.4]} 35. b7 {[%clk 0:00:12.3]} 35... Rh5+ {[%clk 0:00:23.9]}
36. Kg1 {[%clk 0:00:12.5]} 36... Rg5 {[%clk 0:00:20.5]} 37. Rd8# {[%clk
0:00:09.6]} 1-0